[Event "CZE-ch Youth B12 2022"]
[Site "Luhacovice"]
[Date "2022.03.14"]
[Round "3.9"]
[White "Kozdon, Marek"]
[Black "Soucek, Andrej"]
[Result "0-1"]
[ECO "D43"]
[WhiteElo "1183"]
[BlackElo "1399"]
[Annotator "NA"]
[PlyCount "116"]
[EventDate "2022.03.12"]
[EventType "swiss"]
[EventCountry "CZE"]
[SourceTitle "playchess.com"]
[Source "ChessBase"]
[SourceQuality "1"]
[TimeControl "5400+30"]

1. d4 {[%emt 0:00:08]} d5 {[%emt 0:00:21]} 2. Nf3 {[%emt 0:00:25]} Nf6 {[%emt 0:00:11]} 3. c4 {[%emt 0:00:48]} e6 {[%emt 0:00:14]} 4. Nc3 {[%emt 0:00:22]} c6 {[%emt 0:00:23]} 5. Bf4 {[%emt 0:00:33]} Bd6 {[%emt 0:01:08]} 6. Bg3 {[%emt 0:01:42]} O-O {[%emt 0:00:25]} 7. e3 {[%emt 0:00:40]} Qe7 {[%emt 0:00:55]} 8. Bd3 {[%emt 0:01:47]} dxc4 {[%emt 0:00:37]} 9. Bxc4 {[%emt 0:00:05]} b5 {[%emt 0:00:06]} 10. Bd3 {[%emt 0:00:08]} Bb7 {[%emt 0:00:15]} 11. e4 {[%emt 0:02:48]} Bb4 {[%emt 0:03:48]} 12. O-O {[%emt 0:01:05]} Bxc3 {[%emt 0:05:41]} 13. bxc3 {[%emt 0:00:02]} a6 {[%emt 0:02:09]} 14. Bh4 {[%emt 0:00:13]} Qc7 {[%emt 0:14:12]} 15. Bxf6 {[%emt 0:02:30]} gxf6 {[%emt 0:00:10]} 16. e5 {[%emt 0:00:30]} Qe7 {[%emt 0:01:36]} 17. exf6 {[%emt 0:01:01]} Qxf6 {[%emt 0:02:06]} 18. Ne5 {[%emt 0:01:04]} c5 {[%emt 0:04:39]} 19. Qg4+ {[%emt 0:07:01]} Kh8 {[%emt 0:03:11]} 20. Qh3 {[%emt 0:01:13]} Qg7 {[%emt 0:02:19]} 21. Rae1 {[%emt 0:01:32]} cxd4 {[%emt 0:04:07]} 22. cxd4 {[%emt 0:00:23]} f5 {[%emt 0:00:47]} 23. Qg3 {[%emt 0:01:15]} Qxg3 {[%emt 0:01:02]} 24. fxg3 {[%emt 0:00:51]} Bd5 {[%emt 0:01:16]} 25. a3 {[%emt 0:00:45]} Ra7 {[%emt 0:01:37]} 26. Rf4 {[%emt 0:01:00]} Nd7 {[%emt 0:02:30]} 27. Nxd7 {[%emt 0:01:29]} Rxd7 {[%emt 0:00:12]} 28. g4 {[%emt 0:00:28]} Rg7 {[%emt 0:00:47]} 29. Ref1 {[%emt 0:03:09]} Rfg8 {[%emt 0:01:00]} 30. g3 {[%emt 0:02:11]} Rxg4 {[%emt 0:01:05]} 31. Rxg4 {[%emt 0:03:24]} Rxg4 {[%emt 0:00:23]} 32. Rf4 {[%emt 0:00:25]} h5 {[%emt 0:00:34]} 33. Kf2 {[%emt 0:00:43]} Kg7 {[%emt 0:01:03]} 34. Ke3 {[%emt 0:00:15]} Kf6 {[%emt 0:00:18]} 35. Rxg4 {[%emt 0:00:17]} hxg4 {[%emt 0:00:06]} 36. Kf4 {[%emt 0:00:11]} Bc4 {[%emt 0:01:12]} 37. Bc2 {[%emt 0:00:37]} a5 {[%emt 0:01:15]} 38. Bd1 {[%emt 0:00:26]} b4 {[%emt 0:00:12]} 39. axb4 {[%emt 0:00:17]} axb4 {[%emt 0:00:07]} 40. Bc2 {[%emt 0:00:06]} b3 {[%emt 0:00:12]} 41. Bb1 {[%emt 0:00:15]} Bd5 {[%emt 0:00:23]} 42. Ke3 {[%emt 0:04:07]} Be4 {[%emt 0:00:18]} 43. Bc2 {[%emt 0:01:16]} Bxc2 {[%emt 0:00:43]} 44. Kd2 {[%emt 0:00:04]} e5 {[%emt 0:00:11]} 45. d5 {[%emt 0:00:11]} e4 {[%emt 0:00:11]} 46. d6 {[%emt 0:00:07]} Ke6 {[%emt 0:00:12]} 47. d7 {[%emt 0:00:07]} Kxd7 {[%emt 0:00:04]} 48. h3 {[%emt 0:00:04]} gxh3 {[%emt 0:00:12]} 49. g4 {[%emt 0:00:05]} h2 {[%emt 0:00:16]} 50. g5 {[%emt 0:00:15]} h1=Q {[%emt 0:00:10]} 51. g6 {[%emt 0:00:08]} Qg2+ {[%emt 0:00:12]} 52. Kc3 {[%emt 0:00:13]} e3 {[%emt 0:01:50]} 53. g7 {[%emt 0:00:23]} Qxg7+ {[%emt 0:00:07]} 54. Kb4 {[%emt 0:00:02]} Qd4+ {[%emt 0:00:33]} 55. Ka3 {[%emt 0:00:09]} Qc5+ {[%emt 0:00:28]} 56. Kb2 {[%emt 0:00:23]} Bd1 {[%emt 0:00:20]} 57. Ka1 {[%emt 0:00:18]} Qa3+ {[%emt 0:00:17]} 58. Kb1 {[%emt 0:00:08]} Bc2# {[%emt 0:00:11]} 0-1

[Event "CZE-ch Youth B12 2022"]
[Site "Luhacovice"]
[Date "2022.03.14"]
[Round "3.10"]
[White "Tejnor, Martin"]
[Black "Sotek, Simon"]
[Result "0-1"]
[ECO "C01"]
[WhiteElo "1367"]
[BlackElo "1280"]
[Annotator "NA"]
[PlyCount "64"]
[EventDate "2022.03.12"]
[EventType "swiss"]
[EventCountry "CZE"]
[SourceTitle "playchess.com"]
[Source "ChessBase"]
[SourceQuality "1"]
[TimeControl "5400+30"]

1. e4 {[%emt 0:00:03]} e6 {[%emt 0:00:04]} 2. d4 {[%emt 0:00:06]} d5 {[%emt 0:00:04]} 3. exd5 {[%emt 0:00:03]} exd5 {[%emt 0:00:07]} 4. Nf3 {[%emt 0:00:02]} Nf6 {[%emt 0:00:17]} 5. Bd3 {[%emt 0:00:05]} Bd6 {[%emt 0:00:15]} 6. O-O {[%emt 0:00:47]} O-O {[%emt 0:00:15]} 7. Bg5 {[%emt 0:01:27]} Bg4 {[%emt 0:02:13]} 8. Nbd2 {[%emt 0:00:40]} c6 {[%emt 0:00:59]} 9. c3 {[%emt 0:00:21]} Nbd7 {[%emt 0:00:59]} 10. Qc2 {[%emt 0:00:18]} h6 {[%emt 0:02:01]} 11. Bh4 {[%emt 0:00:35]} Qc7 {[%emt 0:01:50]} 12. h3 {[%emt 0:01:57]} Bxf3 {[%emt 0:06:56]} 13. Nxf3 {[%emt 0:00:12]} Rfe8 {[%emt 0:01:47]} 14. Rfe1 {[%emt 0:00:13]} b6 {[%emt 0:05:09]} 15. Bf5 {[%emt 0:18:51]} c5 16. Bxd7 {[%emt 0:06:30]} Nxd7 {[%emt 0:02:46]} 17. Re2 {[%emt 0:00:21]} cxd4 {[%emt 0:12:36]} 18. Nxd4 {[%emt 0:03:33]} Bc5 19. Bg3 {[%emt 0:07:29]} Qb7 {[%emt 0:12:37]} 20. Nf5 Rxe2 {[%emt 0:01:31]} 21. Qxe2 {[%emt 0:01:01]} Nf6 {[%emt 0:03:16]} 22. Rd1 {[%emt 0:05:51]} Re8 23. Qd3 {[%emt 0:00:29]} b5 {[%emt 0:12:30]} 24. Bh4 {[%emt 0:01:32]} Qb6 {[%emt 0:25:26]} 25. Bxf6 {[%emt 0:00:55]} Qxf6 {[%emt 0:01:43]} 26. Qxb5 {[%emt 0:03:40]} Bxf2+ {[%emt 0:02:46]} 27. Kf1 {[%emt 0:00:59]} Re5 {[%emt 0:03:31]} 28. Rxd5 {[%emt 0:01:08]} Bc5 29. Qd3 {[%emt 0:00:13]} Rxd5 {[%emt 0:02:37]} 30. Qxd5 Bf8 {[%emt 0:00:22]} 31. Kg1 {[%emt 0:01:02]} Qb6+ {[%emt 0:00:15]} 32. Qd4 Bc5 0-1

[Event "CZE-ch Youth B12 2022"]
[Site "Luhacovice"]
[Date "2022.03.14"]
[Round "3.11"]
[White "Ruzicka, Oto"]
[Black "Letal, Hynek"]
[Result "1/2-1/2"]
[ECO "B35"]
[WhiteElo "1233"]
[BlackElo "1371"]
[Annotator "NA"]
[PlyCount "98"]
[EventDate "2022.03.12"]
[EventType "swiss"]
[EventCountry "CZE"]
[SourceTitle "playchess.com"]
[Source "ChessBase"]
[SourceQuality "1"]
[TimeControl "5400+30"]

1. e4 c5 2. Nf3 Nc6 3. d4 {[%emt 1:28:52]} cxd4 {[%emt 1:28:52]} 4. Nxd4 {[%emt 0:00:30]} g6 {[%emt 0:00:30]} 5. Nc3 {[%emt 0:00:30]} Bg7 {[%emt 0:00:30]} 6. Be3 {[%emt 0:00:30]} Nf6 {[%emt 0:00:30]} 7. Bc4 {[%emt 0:00:26]} d6 {[%emt 0:00:30]} 8. f3 {[%emt 0:00:30]} Bd7 {[%emt 0:00:00]} 9. Qd2 {[%emt 0:00:00]} Rc8 {[%emt 0:00:00]} 10. Bb3 {[%emt 0:00:00]} O-O {[%emt 0:00:00]} 11. O-O-O {[%emt 0:00:00]} Ne5 {[%emt 0:00:00]} 12. h4 {[%emt 0:00:00]} h5 {[%emt 0:00:00]} 13. Rdf1 {[%emt 0:00:00]} Nc4 {[%emt 0:00:00]} 14. Bxc4 {[%emt 0:00:00]} Rxc4 {[%emt 0:00:00]} 15. Rhg1 {[%emt 0:00:00]} Qa5 {[%emt 0:00:00]} 16. Nb3 {[%emt 0:00:00]} Qa6 {[%emt 0:00:00]} 17. Bh6 {[%emt 0:00:00]} b5 {[%emt 0:00:00]} 18. Bxg7 {[%emt 0:00:00]} Kxg7 {[%emt 0:00:00]} 19. Kb1 {[%emt 0:00:00]} Rfc8 {[%emt 0:00:00]} 20. Rc1 {[%emt 0:00:00]} Qb6 {[%emt 0:00:00]} 21. g4 {[%emt 0:00:00]} b4 {[%emt 0:00:00]} 22. Nd5 {[%emt 0:00:00]} Nxd5 {[%emt 0:00:00]} 23. Qxd5 {[%emt 0:00:00]} Rxc2 {[%emt 0:00:00]} 24. gxh5 {[%emt 0:00:00]} Rxc1+ {[%emt 0:00:00]} 25. Rxc1 {[%emt 0:00:00]} Rxc1+ {[%emt 0:00:00]} 26. Nxc1 {[%emt 0:00:00]} Be6 {[%emt 0:00:00]} 27. Qd2 {[%emt 0:00:00]} Qc5 {[%emt 0:00:00]} 28. hxg6 {[%emt 0:00:00]} fxg6 {[%emt 0:00:00]} 29. Ne2 {[%emt 0:00:00]} b3 {[%emt 0:00:00]} 30. axb3 {[%emt 0:00:00]} Bxb3 {[%emt 0:00:00]} 31. Qd4+ {[%emt 0:00:00]} Qxd4 {[%emt 0:00:00]} 32. Nxd4 {[%emt 0:00:00]} Ba4 {[%emt 0:00:00]} 33. Ka2 {[%emt 0:00:00]} e5 {[%emt 0:00:00]} 34. Ne6+ {[%emt 0:00:00]} Kh6 {[%emt 0:00:00]} 35. Ka3 {[%emt 0:00:00]} Bd1 {[%emt 0:00:00]} 36. Ng5 {[%emt 0:00:00]} Kh5 {[%emt 0:00:00]} 37. Kb4 {[%emt 0:00:00]} Kxh4 {[%emt 0:00:00]} 38. Nf7 {[%emt 0:00:00]} Bxf3 {[%emt 0:00:00]} 39. Nxd6 {[%emt 0:00:00]} g5 {[%emt 0:00:00]} 40. Kc5 {[%emt 0:00:00]} a5 {[%emt 0:00:00]} 41. Kd5 {[%emt 0:00:11]} g4 {[%emt 0:00:00]} 42. Kxe5 {[%emt 0:02:13]} g3 {[%emt 0:00:00]} 43. Nf5+ {[%emt 0:00:21]} Kg4 {[%emt 0:00:00]} 44. Nxg3 {[%emt 0:00:13]} Kxg3 {[%emt 0:00:00]} 45. Kd4 {[%emt 0:00:33]} Bd1 {[%emt 0:00:00]} 46. e5 {[%emt 0:02:36]} Bb3 {[%emt 0:00:00]} 47. Kc3 {[%emt 0:00:52]} a4 {[%emt 0:00:00]} 48. Kb4 {[%emt 0:01:04]} Kf4 {[%emt 0:00:00]} 49. e6 {[%emt 0:00:18]} Bxe6 {[%emt 0:00:00]} 1/2-1/2

[Event "CZE-ch Youth B12 2022"]
[Site "Luhacovice"]
[Date "2022.03.14"]
[Round "3.12"]
[White "Topencik, Bruno"]
[Black "Jansky, Adam"]
[Result "0-1"]
[ECO "C57"]
[WhiteElo "1339"]
[BlackElo "1233"]
[Annotator "NA"]
[PlyCount "58"]
[EventDate "2022.03.12"]
[EventType "swiss"]
[EventCountry "CZE"]
[SourceTitle "playchess.com"]
[Source "ChessBase"]
[SourceQuality "1"]
[TimeControl "5400+30"]

1. e4 {[%emt 0:00:03]} e5 {[%emt 0:00:05]} 2. Nf3 {[%emt 0:00:05]} Nc6 {[%emt 0:00:04]} 3. Bc4 {[%emt 0:00:05]} Nf6 {[%emt 0:00:04]} 4. Ng5 {[%emt 0:00:06]} d5 {[%emt 0:00:09]} 5. exd5 {[%emt 0:00:06]} b5 {[%emt 0:00:03]} 6. Bxb5 {[%emt 0:00:36]} Qxd5 {[%emt 0:00:08]} 7. Bxc6+ {[%emt 0:00:31]} Qxc6 {[%emt 0:00:06]} 8. O-O {[%emt 0:00:25]} Bb7 {[%emt 0:00:25]} 9. f3 {[%emt 0:03:05]} Bc5+ {[%emt 0:02:09]} 10. Kh1 {[%emt 0:00:53]} h6 {[%emt 0:01:13]} 11. Nh3 {[%emt 0:00:48]} O-O-O {[%emt 0:02:28]} 12. d3 {[%emt 0:02:39]} g5 {[%emt 0:00:46]} 13. Qe2 {[%emt 0:02:44]} Rhe8 {[%emt 0:02:52]} 14. Nc3 {[%emt 0:02:06]} Nh5 {[%emt 0:07:09]} 15. Be3 {[%emt 0:02:30]} Nf4 {[%emt 0:03:53]} 16. Bxf4 {[%emt 0:03:17]} exf4 {[%emt 0:00:29]} 17. Qd1 {[%emt 0:02:04]} f5 {[%emt 0:00:56]} 18. Ng1 {[%emt 0:03:20]} h5 {[%emt 0:04:17]} 19. Re1 {[%emt 0:01:56]} Be3 {[%emt 0:05:33]} 20. Re2 {[%emt 0:03:00]} Rg8 {[%emt 0:02:24]} 21. Qf1 {[%emt 0:01:49]} g4 {[%emt 0:09:50]} 22. fxg4 {[%emt 0:07:42]} Rxg4 {[%emt 0:00:12]} 23. Nd1 {[%emt 0:03:45]} Bxg1 {[%emt 0:01:28]} 24. Kxg1 {[%emt 0:01:06]} Rdg8 {[%emt 0:08:49]} 25. Kf2 {[%emt 0:01:35]} Rxg2+ {[%emt 0:00:42]} 26. Ke1 {[%emt 0:00:09]} Rg1 {[%emt 0:00:04]} 27. Qxg1 {[%emt 0:00:18]} Rxg1+ {[%emt 0:00:10]} 28. Kd2 {[%emt 0:00:06]} f3 {[%emt 0:00:52]} 29. Nf2 {[%emt 0:00:41]} Rxa1 {[%emt 0:00:17]} 0-1

[Event "CZE-ch Youth B12 2022"]
[Site "Luhacovice"]
[Date "2022.03.14"]
[Round "4.1"]
[White "Roubal, Matyas"]
[Black "Kroulik, Vaclav"]
[Result "1/2-1/2"]
[ECO "B40"]
[WhiteElo "1870"]
[BlackElo "1645"]
[Annotator "NA"]
[PlyCount "62"]
[EventDate "2022.03.12"]
[EventType "swiss"]
[EventCountry "CZE"]
[SourceTitle "playchess.com"]
[Source "ChessBase"]
[SourceQuality "1"]
[TimeControl "5400+30"]

1. e4 c5 2. Nf3 e6 3. c3 Nf6 4. e5 Nd5 5. d4 cxd4 6. cxd4 Nc6 7. Bc4 Nb6 8. Bd3 d6 9. exd6 Bxd6 10. Nc3 O-O 11. O-O g6 12. Bh6 Re8 13. Re1 Qf6 14. Ne4 Qd8 15. Nxd6 Qxd6 16. Bc2 Bd7 17. Bb3 Na5 $1 18. Ne5 Nxb3 19. axb3 Bc6 20. Qd2 Qd5 21. f3 f6 22. Ng4 Kf7 23. Ra5 Qxb3 $2 (23... Qd6 $1 $11 {and Black is okay.}) 24. Qf4 Nd7 25. Nxf6 Nxf6 26. Bg5 Kg8 27. Bxf6 Qb4 28. Rae5 Bd5 29. g4 ({White should play} 29. h4 $14 Rf8 30. h5) 29... Rf8 30. g5 Rac8 31. R1e2 Rc4 $11 (31... b5 $15) 1/2-1/2

[Event "CZE-ch Youth B12 2022"]
[Site "Luhacovice"]
[Date "2022.03.14"]
[Round "4.2"]
[White "Soucek, Andrej"]
[Black "Mikulka, Martin Michael"]
[Result "0-1"]
[ECO "C63"]
[WhiteElo "1399"]
[BlackElo "1406"]
[Annotator "NA"]
[PlyCount "128"]
[EventDate "2022.03.12"]
[EventType "swiss"]
[EventCountry "CZE"]
[SourceTitle "playchess.com"]
[Source "ChessBase"]
[SourceQuality "1"]
[TimeControl "5400+30"]

1. e4 {[%emt 0:00:09]} e5 {[%emt 0:00:05]} 2. Nf3 {[%emt 0:00:20]} Nc6 {[%emt 0:00:04]} 3. Bb5 {[%emt 0:00:09]} f5 {[%emt 0:00:07]} 4. d3 {[%emt 0:00:53]} fxe4 {[%emt 0:00:05]} 5. dxe4 {[%emt 0:00:13]} Nf6 {[%emt 0:00:22]} 6. Nbd2 {[%emt 0:02:48]} Bc5 {[%emt 0:00:36]} 7. O-O {[%emt 0:00:30]} d6 {[%emt 0:00:12]} 8. c3 {[%emt 0:00:32]} Qe7 {[%emt 0:00:35]} 9. b4 {[%emt 0:01:05]} Bb6 {[%emt 0:00:16]} 10. Qc2 {[%emt 0:07:09]} a6 {[%emt 0:05:35]} 11. Bc4 {[%emt 0:06:20]} Be6 {[%emt 0:00:36]} 12. a4 {[%emt 0:01:49]} O-O {[%emt 0:01:09]} 13. Ba3 {[%emt 0:14:07]} Nh5 {[%emt 0:05:37]} 14. Bxe6+ {[%emt 0:06:23]} Qxe6 {[%emt 0:00:16]} 15. Qb3 {[%emt 0:00:13]} Qxb3 {[%emt 0:01:32]} 16. Nxb3 {[%emt 0:00:06]} Nf4 {[%emt 0:00:32]} 17. Ra2 {[%emt 0:05:17]} Rf6 {[%emt 0:01:00]} 18. Bc1 {[%emt 0:02:05]} Nh3+ {[%emt 0:01:16]} 19. Kh1 {[%emt 0:00:17]} Raf8 {[%emt 0:01:42]} 20. Re2 {[%emt 0:04:34]} Nd8 {[%emt 0:03:56]} 21. Be3 {[%emt 0:07:54]} Bxe3 {[%emt 0:00:09]} 22. Rxe3 {[%emt 0:00:04]} Ne6 {[%emt 0:00:51]} 23. Nbd2 {[%emt 0:01:57]} Nhg5 {[%emt 0:01:12]} 24. Nxg5 {[%emt 0:12:20]} Nxg5 {[%emt 0:01:19]} 25. Kg1 {[%emt 0:00:13]} h6 {[%emt 0:04:41]} 26. h4 {[%emt 0:06:24]} Ne6 {[%emt 0:00:23]} 27. Rf3 {[%emt 0:00:26]} Rxf3 {[%emt 0:00:56]} 28. Nxf3 {[%emt 0:00:07]} Nf4 {[%emt 0:01:50]} 29. Re1 {[%emt 0:04:17]} Nd3 {[%emt 0:08:51]} 30. Rd1 {[%emt 0:03:26]} Nb2 {[%emt 0:00:21]} 31. Ra1 {[%emt 0:00:13]} Rf4 {[%emt 0:01:19]} 32. Ra2 {[%emt 0:00:45]} Nc4 {[%emt 0:01:51]} 33. Re2 {[%emt 0:00:25]} Kf7 {[%emt 0:01:27]} 34. Kf1 {[%emt 0:00:40]} Ke7 {[%emt 0:00:44]} 35. Ke1 {[%emt 0:00:18]} Kd7 {[%emt 0:00:50]} 36. Kd1 {[%emt 0:00:27]} c5 {[%emt 0:00:54]} 37. Kc2 {[%emt 0:00:46]} b5 {[%emt 0:00:36]} 38. Kb3 {[%emt 0:00:52]} Kc6 {[%emt 0:00:20]} 39. a5 {[%emt 0:01:03]} g6 {[%emt 0:03:12]} 40. Kc2 {[%emt 0:00:38]} cxb4 {[%emt 0:01:01]} 41. cxb4 {[%emt 0:00:32]} d5 {[%emt 0:00:16]} 42. Kd3 {[%emt 0:01:34]} dxe4+ {[%emt 0:01:15]} 43. Rxe4 {[%emt 0:00:38]} Nb2+ {[%emt 0:00:15]} 44. Ke3 {[%emt 0:01:15]} Nd1+ {[%emt 0:00:06]} 45. Kd3 {[%emt 0:01:02]} Nxf2+ {[%emt 0:00:08]} 46. Ke3 {[%emt 0:00:03]} Rxe4+ {[%emt 0:00:20]} 47. Kxf2 {[%emt 0:00:08]} Rf4 {[%emt 0:00:16]} 48. Ke3 {[%emt 0:00:16]} Rxf3+ {[%emt 0:00:15]} 49. Kxf3 {[%emt 0:00:21]} Kd5 {[%emt 0:00:05]} 50. g4 {[%emt 0:00:13]} Kc4 {[%emt 0:00:08]} 51. Ke4 {[%emt 0:00:10]} Kxb4 {[%emt 0:00:05]} 52. Kxe5 {[%emt 0:00:05]} Kc3 {[%emt 0:00:08]} 53. Kf6 {[%emt 0:00:13]} b4 {[%emt 0:00:07]} 54. Kxg6 {[%emt 0:00:26]} b3 {[%emt 0:00:04]} 55. Kxh6 {[%emt 0:00:08]} b2 {[%emt 0:00:05]} 56. g5 {[%emt 0:00:11]} b1=Q {[%emt 0:00:09]} 57. g6 {[%emt 0:00:15]} Qc1+ {[%emt 0:05:19]} 58. Kh5 {[%emt 0:00:18]} Qg1 {[%emt 0:02:26]} 59. Kh6 {[%emt 0:00:13]} Qe3+ {[%emt 0:01:18]} 60. Kh5 {[%emt 0:00:33]} Qg3 {[%emt 0:02:22]} 61. g7 {[%emt 0:00:14]} Kd4 {[%emt 0:00:59]} 62. Kh6 {[%emt 0:00:46]} Qxh4+ {[%emt 0:00:05]} 63. Kg6 {[%emt 0:00:10]} Kc5 {[%emt 0:01:36]} 64. Kf7 {[%emt 0:00:13]} Kb5 {[%emt 0:00:20]} 0-1

[Event "CZE-ch Youth B12 2022"]
[Site "Luhacovice"]
[Date "2022.03.14"]
[Round "4.3"]
[White "Krautschneider, Daniel Jan"]
[Black "Delgerdalai, Bayarjavkhlan"]
[Result "0-1"]
[ECO "C01"]
[WhiteElo "1304"]
[BlackElo "2074"]
[Annotator "NA"]
[PlyCount "50"]
[EventDate "2022.03.12"]
[EventType "swiss"]
[EventCountry "CZE"]
[SourceTitle "playchess.com"]
[Source "ChessBase"]
[SourceQuality "1"]
[TimeControl "5400+30"]

1. e4 {[%emt 0:00:02]} e6 {[%emt 0:00:15]} 2. d4 {[%emt 0:00:07]} d5 {[%emt 0:00:12]} 3. exd5 {[%emt 0:00:15]} exd5 {[%emt 0:00:07]} 4. Nc3 {[%emt 0:00:09]} Nf6 {[%emt 0:00:28]} 5. Nf3 {[%emt 0:00:08]} Be7 {[%emt 0:00:35]} 6. Be2 {[%emt 0:00:08]} O-O {[%emt 0:00:12]} 7. Bf4 {[%emt 0:00:11]} c6 {[%emt 0:00:20]} 8. Qd3 {[%emt 0:00:29]} Bg4 {[%emt 0:01:23]} 9. O-O-O {[%emt 0:04:51]} b5 {[%emt 0:01:28]} 10. Kb1 {[%emt 0:00:49]} b4 $1 {[%emt 0:02:48]} 11. Ne5 {[%emt 0:04:42]} bxc3 {[%emt 0:11:05]} 12. Nxg4 {[%emt 0:00:15]} cxb2 {[%emt 0:05:42]} 13. Nxf6+ {[%emt 0:08:13]} Bxf6 {[%emt 0:00:01]} 14. h4 {[%emt 0:08:24]} Nd7 {[%emt 0:01:16]} 15. g4 {[%emt 0:00:10]} Nb6 {[%emt 0:06:08]} 16. Rdg1 $2 {[%emt 0:05:18]} (16. g5 $15 Be7 17. Kxb2) 16... Be7 {[%emt 0:12:20]} 17. Qg3 {[%emt 0:02:35]} Na4 {[%emt 0:04:29]} 18. Bd2 {[%emt 0:01:32]} Qb6 {[%emt 0:04:07]} 19. c3 {[%emt 0:02:17]} (19. Qd3 $142) 19... c5 {[%emt 0:05:04]} 20. g5 {[%emt 0:09:01]} cxd4 {[%emt 0:03:10]} 21. g6 {[%emt 0:19:32]} fxg6 {[%emt 0:05:25]} 22. h5 {[%emt 0:03:48]} dxc3 {[%emt 0:02:09]} 23. Bd1 {[%emt 0:02:12]} cxd2 {[%emt 0:03:13]} 24. Qd3 {[%emt 0:01:22]} Rac8 {[%emt 0:01:46]} 25. Qxd5+ {[%emt 0:02:51]} Kh8 {[%emt 0:00:18]} 0-1

[Event "CZE-ch Youth B12 2022"]
[Site "Luhacovice"]
[Date "2022.03.14"]
[Round "4.4"]
[White "Sotek, Simon"]
[Black "Popov, Roman"]
[Result "0-1"]
[ECO "D35"]
[WhiteElo "1280"]
[BlackElo "2353"]
[Annotator "ChessBase"]
[PlyCount "70"]
[EventDate "2022.03.12"]
[EventType "swiss"]
[EventCountry "CZE"]
[SourceTitle "playchess.com"]
[Source "ChessBase"]
[SourceQuality "1"]
[TimeControl "5400+30"]

1. d4 {[%emt 0:00:02]} d5 {[%emt 0:00:16]} 2. c4 {[%emt 0:00:04]} e6 {[%emt 0:00:16]} 3. Nc3 {[%emt 0:00:15]} Nf6 {[%emt 0:00:24]} 4. cxd5 {[%emt 0:00:28]} exd5 {[%emt 0:00:21]} 5. Nf3 {[%emt 0:00:41]} Be7 {[%emt 0:01:31]} 6. e3 {[%emt 0:01:00]} c6 {[%emt 0:00:24]} 7. Bd3 {[%emt 0:00:34]} O-O {[%emt 0:01:24]} 8. O-O {[%emt 0:01:21]} Re8 {[%emt 0:04:13]} 9. Re1 {[%emt 0:02:05]} Bd6 {[%emt 0:03:03]} 10. e4 {[%emt 0:02:17]} dxe4 {[%emt 0:02:46]} 11. Nxe4 {[%emt 0:01:25]} Nxe4 {[%emt 0:09:21]} 12. Bxe4 {[%emt 0:05:41]} Nd7 {[%emt 0:01:12]} 13. Qb3 {[%emt 0:17:51]} Nf6 {[%emt 0:08:40]} 14. Bg5 {[%emt 0:03:42]} Be7 {[%emt 0:08:12]} 15. Bxf6 {[%emt 0:17:06]} Bxf6 {[%emt 0:01:55]} 16. Rad1 {[%emt 0:02:26]} g6 {[%emt 0:24:53]} 17. d5 {[%emt 0:07:46]} cxd5 {[%emt 0:02:14]} 18. Bxd5 {[%emt 0:02:49]} Rxe1+ {[%emt 0:01:58]} 19. Rxe1 {[%emt 0:02:34]} Qf8 {[%emt 0:03:12]} 20. Qa4 {[%emt 0:05:26]} Bf5 {[%emt 0:03:00]} 21. Bxb7 {[%emt 0:04:53]} Rb8 {[%emt 0:03:15]} 22. Qxa7 {[%emt 0:01:40]} Bxb2 {[%emt 0:01:19]} 23. h3 {[%emt 0:00:34]} Bf6 {[%emt 0:04:13]} 24. Bd5 {[%emt 0:02:28]} Rd8 {[%emt 0:00:58]} 25. Bb3 {[%emt 0:02:53]} Rd7 {[%emt 0:02:06]} 26. Qa4 {[%emt 0:01:21]} Re7 {[%emt 0:00:52]} 27. Rxe7 {[%emt 0:02:20]} Qxe7 {[%emt 0:00:27]} 28. Qa8+ {[%emt 0:00:24]} Kg7 {[%emt 0:00:25]} 29. a4 {[%emt 0:00:20]} Be4 {[%emt 0:03:14]} 30. Bd5 {[%emt 0:01:07]} Bxf3 {[%emt 0:00:48]} 31. gxf3 {[%emt 0:04:56]} Qe1+ {[%emt 0:00:19]} 32. Kg2 {[%emt 0:00:07]} Bd4 {[%emt 0:00:11]} 33. Kg3 {[%emt 0:00:23]} Qxf2+ {[%emt 0:00:47]} 34. Kg4 {[%emt 0:01:13]} h5+ {[%emt 0:00:12]} 35. Kf4 {[%emt 0:00:35]} Qh4# 0-1